bitfinex-derivatives/quotes_ETHF0:USTF0_20260207
["timestamp","ask_amount","ask_price","bid_price","bid_amount"]
[1770484052777,11.06179277,2033.9,2033.3,0.53885437]
[1770484052986,11.06179277,2033.9,2033.3,11.91456846]
[1770484052987,0.00508118,2033.9,2033.3,11.91456846]
[1770484053186,11.06179277,2034.5,2033.5,11.37571409]
[1770484053581,11.06179277,2034.5,2033.6,11.91456846]
[1770484053781,11.06179277,2034.9,2033.6,11.37571409]
[1770484054289,11.06530335,2034.9,2033.8,11.37571409]
[1770484054490,11.06179277,2035.6,2034.8,11.91456846]
[1770484054787,11.06179277,2035.6,2033.9,11.91456846]
[1770484055187,11.06179277,2035.6,2034.1,11.37571409]
[1770484055380,9.10213041,2035.4,2034.1,11.37571409]
[1770484055582,9.10557216,2035.4,2034.3,9.08309795]
[1770484055987,9.10557216,2035.4,2034.4,9.62195232]
[1770484056288,9.10557216,2035.4,2034.2,9.62195232]
[1770484056689,9.10557216,2035.4,2034.4,9.08309795]
[1770484056891,9.10557216,2035.4,2034.2,0.53885437]
[1770484056892,9.10213041,2035.2,2034.2,0.53885437]
[1770484057388,9.10213041,2035.2,2034.3,9.62195232]
[1770484057688,9.10213041,2035.2,2034.3,9.08309795]
[1770484057887,9.10213041,2035.2,2034.4,0.53885437]
[1770484058383,9.10213041,2035.2,2034.1,0.00527298]
[1770484058587,9.10213041,2035.0,2034.1,9.08837093]
[1770484059087,10.55054908,2035.0,2033.1,0.51954303]
[1770484059286,9.10213041,2034.8,2032.9,9.16867112]
[1770484059488,9.10213041,2034.8,2032.9,9.08309795]
[1770484059690,9.10213041,2034.6,2032.9,9.60740411]
[1770484060191,9.10213041,2034.4,2032.9,9.6136005]
[1770484060380,9.10213041,2034.1,2032.2,9.08309795]
[1770484060784,9.10213041,2033.9,2032.2,9.08309795]
[1770484061186,9.10213041,2033.9,2032.2,9.60320589]
[1770484061386,9.10213041,2033.7,2032.2,9.60682164]
[1770484061590,9.10213041,2033.7,2032.4,9.08309795]
[1770484062285,9.10213041,2033.5,2032.4,9.08309795]
[1770484062586,0.00550656,2033.9,2032.7,9.08309795]
[1770484062979,9.10763697,2033.9,2032.7,9.08309795]
[1770484063486,9.10763697,2033.9,2032.4,9.08309795]
[1770484063789,9.10213041,2033.7,2032.2,9.60682164]
[1770484064185,9.10213041,2033.5,2032.2,9.60682164]
[1770484064384,0.00550656,2033.9,2033.0,9.08309795]
[1770484064585,9.10763697,2033.9,2032.9,1.44841867]
[1770484064781,9.10763697,2033.9,2032.5,9.08309795]
[1770484065190,5.65021818,2033.8,2032.5,9.08309795]
[1770484065487,9.10213041,2033.7,2032.5,9.08309795]
[1770484065991,0.00550656,2033.9,2032.3,9.08309795]
[1770484065992,9.10213041,2033.5,2032.3,9.08309795]
[1770484066689,9.10213041,2033.8,2032.5,9.08309795]
[1770484066891,9.10763697,2033.9,2032.5,9.08309795]
[1770484067089,9.10763697,2033.9,2032.4,1.44841867]
[1770484067292,9.10213041,2033.7,2032.2,0.52372369]
[1770484067592,5.49411764,2033.8,2032.8,1.44841867]
[1770484067790,42.71058023,2035.6,2033.4,9.08309795]
[1770484067989,9.10213041,2035.5,2033.8,9.08309795]
[1770484068185,9.10213041,2035.0,2033.8,9.08309795]
[1770484068383,5.07136772,2035.2,2034.5,9.08309795]
[1770484068591,9.10213041,2035.8,2033.7,10.53151662]
[1770484068788,9.10213041,2035.5,2033.7,10.53772433]
[1770484069185,9.10213041,2035.5,2034.1,1.44841867]
[1770484069385,9.10213041,2035.3,2033.9,9.08309795]
[1770484069591,9.10213041,2035.3,2033.7,10.53772433]
[1770484069996,9.10213041,2035.1,2033.7,10.53772433]
[1770484070800,9.10213041,2035.1,2034.2,9.08309795]
[1770484070997,9.10213041,2035.1,2033.7,10.53772433]
[1770484071198,5.07136772,2035.0,2033.7,10.53772433]
[1770484071400,9.10213041,2034.9,2033.7,10.53772433]
[1770484072095,9.10213041,2035.7,2033.7,10.53772433]
[1770484072300,9.10213041,2035.5,2033.7,10.53772433]
[1770484073000,9.10213041,2035.3,2034.2,9.08309795]
[1770484073703,5.07136772,2035.2,2034.2,9.08309795]
[1770484073997,9.10213041,2035.3,2034.2,9.08309795]
[1770484074203,9.10213041,2035.7,2034.4,10.53151662]
[1770484074395,9.10213041,2035.7,2034.8,1.44841867]
[1770484074699,0.00578647,2035.8,2034.9,9.08309795]
[1770484075405,9.10213041,2036.4,2034.9,9.08309795]
[1770484075695,14.17349813,2036.2,2034.9,9.08309795]
[1770484075902,9.10213041,2036.1,2035.3,9.08309795]
[1770484076098,51.81271064,2036.7,2035.3,9.08309795]
[1770484076296,9.10213041,2036.5,2035.3,9.08309795]
[1770484076498,9.10213041,2036.5,2035.4,9.08309795]
[1770484076892,9.10213041,2036.5,2035.4,9.61553602]
[1770484077202,9.10213041,2036.5,2035.4,0.53243807]
[1770484077403,9.10213041,2036.3,2035.4,9.08309795]
[1770484077594,9.10213041,2036.3,2035.3,9.61506933]
[1770484077803,0.00509335,2036.7,2036.0,10.53151662]
[1770484078102,7.11843003,2037.6,2036.0,10.53151662]
[1770484078103,42.71058023,2037.6,2036.0,10.53151662]
[1770484078298,42.71058023,2037.4,2035.7,9.08309795]
[1770484078499,5.07136772,2037.2,2035.7,9.08309795]
[1770484078804,42.71058023,2037.7,2036.5,9.08309795]
[1770484078997,0.50774034,2037.6,2036.5,9.08309795]
[1770484079192,42.71058023,2038.0,2036.9,9.08309795]
[1770484079396,7.11843003,2038.3,2036.9,9.08309795]
[1770484079397,0.51279549,2038.3,2036.9,9.08309795]
[1770484079592,0.51279549,2038.1,2036.9,9.08309795]
[1770484080204,0.51279549,2038.1,2036.9,0.0055822]
[1770484080205,0.51900934,2038.1,2036.9,0.0055822]
[1770484080398,0.51900934,2038.1,2036.9,9.08868015]
[1770484080593,48.40532426,2038.7,2037.3,9.08309795]
[1770484080797,0.04097347,2038.9,2037.3,9.08309795]
[1770484081003,42.71058023,2038.5,2036.9,9.08868015]
[1770484081201,4.12713545,2038.4,2036.9,9.08868015]
[1770484081398,42.71058023,2038.7,2036.9,9.08868015]
[1770484081606,0.00614354,2038.7,2036.9,9.08868015]
[1770484082004,42.71058023,2039.5,2036.9,9.08868015]
[1770484082203,48.40532426,2040.0,2037.2,9.08309795]
[1770484082398,4.10982149,2039.9,2037.6,9.08309795]
[1770484082595,0.08537499,2040.0,2037.8,9.08309795]
[1770484082800,4.10784803,2039.9,2037.8,9.08309795]
[1770484082998,4.10752623,2039.8,2037.8,9.08309795]
[1770484083200,4.10752623,2039.7,2037.8,9.08309795]
[1770484083504,4.10752623,2039.6,2037.8,9.08309795]
[1770484083701,42.71058023,2039.6,2037.8,9.08309795]
[1770484083902,4.10752623,2039.5,2037.8,9.08309795]
[1770484084102,4.10752623,2039.4,2037.8,9.08309795]
[1770484084301,2.84505831,2039.6,2037.8,9.08309795]
[1770484084498,4.09530472,2039.5,2037.8,9.08309795]
[1770484084808,2.84505831,2039.6,2037.8,9.08309795]
[1770484085104,4.09733259,2039.5,2037.8,9.08309795]
[1770484085305,4.09369065,2039.4,2037.8,9.08309795]
[1770484085493,2.84505831,2039.6,2037.8,9.08309795]
[1770484085697,4.09046683,2039.5,2037.3,8.18591278]
[1770484085902,2.84505831,2039.0,2037.0,8.18591278]
[1770484086106,2.84505831,2038.9,2037.0,8.18591278]
[1770484086301,2.84505831,2038.8,2037.0,8.18591278]
[1770484086607,4.09046683,2038.7,2037.0,8.18591278]
[1770484086805,2.84505831,2038.9,2037.0,8.18591278]
[1770484087006,4.0887461,2038.8,2037.0,8.18591278]
[1770484087193,4.0887461,2038.7,2037.0,8.18591278]
[1770484087399,4.906,2039.9,2037.3,6.11946644]
[1770484087699,2.83622823,2040.4,2037.5,6.36506644]
[1770484087902,2.83622823,2040.2,2037.5,6.36506644]
[1770484088106,0.09103243,2039.8,2037.5,6.36506644]
[1770484088402,0.00564822,2039.8,2037.5,6.36506644]
[1770484088596,0.09102049,2039.8,2037.5,6.36506644]
[1770484089401,0.09102049,2039.8,2036.9,6.18392194]
[1770484089607,7.74222823,2039.6,2036.9,6.18392194]
[1770484090605,4.906,2039.4,2036.9,6.18392194]
[1770484091107,2.83622823,2039.7,2036.9,6.42959194]
[1770484091303,0.09102049,2039.8,2037.1,6.31262293]
[1770484091499,2.83622823,2039.6,2037.1,6.31262293]
[1770484092398,4.906,2039.5,2037.1,6.31262293]
[1770484092806,4.906,2039.3,2037.1,6.31262293]
[1770484093212,45.54680846,2039.5,2037.1,6.31262293]
[1770484093411,4.906,2039.5,2037.1,6.31262293]
[1770484093711,2.83622823,2039.7,2037.1,6.31262293]
[1770484094412,7.74222823,2039.7,2037.1,6.31262293]
[1770484096006,2.83622823,2039.7,2037.3,6.0238922]
[1770484096212,0.09102049,2039.8,2037.5,6.01185176]
[1770484096912,2.83622823,2039.6,2037.5,6.01185176]
[1770484097114,50.45280846,2039.7,2037.5,6.01185176]
[1770484097412,7.74222823,2039.5,2037.5,6.01185176]
[1770484097614,2.83622823,2039.5,2037.5,6.01185176]
[1770484098313,45.54680846,2039.4,2037.5,6.01185176]
[1770484098515,2.83622823,2039.3,2037.5,6.01185176]
[1770484098904,2.83622823,2039.4,2037.1,5.99558132]
[1770484099213,50.45280846,2039.4,2037.1,5.99558132]
[1770484099515,7.74222823,2039.2,2037.1,5.99558132]
[1770484099809,2.83622823,2039.1,2037.1,5.99558132]
[1770484100409,2.83622823,2039.2,2037.1,5.99558132]
[1770484101317,2.83622823,2039.1,2037.1,5.99558132]
[1770484101508,45.54680846,2039.1,2037.1,5.99558132]
[1770484102020,2.83622823,2038.9,2037.1,5.99558132]
[1770484102316,2.83622823,2038.7,2037.1,5.99558132]
[1770484102613,7.74222823,2038.7,2037.1,5.99558132]
[1770484102814,7.74222823,2038.8,2037.1,5.99558132]
[1770484103011,4.906,2038.8,2037.1,5.99558132]
[1770484103203,7.74222823,2038.8,2037.1,5.99558132]
[1770484103403,2.83622823,2038.8,2037.1,5.99558132]
[1770484103813,50.45280846,2038.7,2037.1,5.99558132]
[1770484104018,2.83622823,2038.6,2037.1,5.99558132]
[1770484104426,45.54680846,2038.5,2037.1,5.99558132]
[1770484104607,2.83622823,2038.5,2037.1,5.99558132]
[1770484105319,39.53831234,2038.6,2037.1,5.99558132]
[1770484105520,5.65473735,2038.9,2037.1,5.99558132]
[1770484105813,5.65473735,2039.0,2037.1,5.99558132]
[1770484106610,5.65473735,2039.0,2037.0,4.55001688]
[1770484106611,5.65473735,2039.0,2037.2,3.31518601]
[1770484107419,5.65473735,2038.9,2037.2,3.31518601]
[1770484108017,5.65473735,2039.0,2037.3,3.31518601]
[1770484108215,5.65473735,2039.1,2037.4,3.31518601]
[1770484108420,5.65473735,2039.0,2037.5,3.31518601]
[1770484108612,5.65473735,2038.9,2037.5,3.31518601]
[1770484108814,5.65473735,2038.6,2037.3,3.31518601]
[1770484109015,8.56976916,2039.0,2035.7,3.31518601]
[1770484109016,8.56976916,2037.5,2035.7,3.31518601]
[1770484109208,5.76067771,2037.3,2036.0,3.31518601]
[1770484109409,5.76067771,2037.6,2036.0,3.31518601]
[1770484109622,5.76067771,2037.4,2036.2,3.31518601]
[1770484109826,4.41595949,2037.3,2036.4,3.31518601]
[1770484110017,4.41595949,2037.2,2036.6,3.31518601]
[1770484110321,4.41595949,2037.1,2036.6,3.31518601]
[1770484110524,0.00627757,2037.3,2036.8,3.31518601]
[1770484110723,4.41204805,2037.2,2036.5,15.0]
[1770484110922,4.41204805,2037.1,2036.5,18.31518601]
[1770484111120,4.41204805,2037.0,2036.6,3.31518601]
[1770484111327,5.76695528,2037.3,2036.6,3.31518601]
[1770484111516,10.16887083,2037.2,2036.8,3.31518601]
[1770484111818,10.16887083,2037.2,2036.4,0.00516893]
[1770484111819,4.40819312,2037.1,2036.5,0.55415473]
[1770484112020,3.76122463,2037.0,2036.6,0.55415473]
[1770484112212,2.36773242,2037.6,2036.6,0.55415473]
[1770484112413,2.36773242,2037.6,2036.7,15.0]
[1770484112621,2.36773242,2037.6,2036.5,15.0]
[1770484113019,2.36773242,2037.8,2036.5,15.0]
[1770484113220,0.00422088,2037.8,2036.5,15.0]
[1770484113421,5.76067771,2038.5,2036.6,0.24572]
[1770484113721,2.36700217,2038.4,2036.6,0.24572]
[1770484113926,2.36700217,2038.4,2036.7,14.99577912]
[1770484114319,2.36700217,2038.1,2036.7,14.99577912]
[1770484114617,2.37289411,2038.1,2036.8,21.094]
[1770484115022,2.37289411,2038.1,2036.9,14.99577912]
[1770484115225,2.37289411,2038.1,2037.0,0.00509621]
[1770484115425,2.37289411,2038.1,2037.1,14.99577912]
[1770484116923,2.37289411,2038.1,2037.1,14.99902303]
[1770484117931,2.37289411,2038.1,2037.2,0.01360817]
[1770484118323,2.37289411,2038.1,2036.8,21.094]
[1770484118324,2.37289411,2038.1,2037.3,15.00938729]
[1770484118523,2.37289411,2038.1,2036.9,15.00938729]
[1770484118723,5.76067771,2038.6,2037.0,0.01360817]
[1770484118929,0.58719107,2038.6,2037.0,0.01360817]
[1770484119524,0.58719107,2038.6,2037.1,14.99577912]
[1770484119725,0.59227684,2038.6,2037.2,0.00941652]
[1770484120230,0.59227684,2038.6,2037.4,0.00941652]
[1770484120728,5.77e-06,2038.6,2037.6,0.00941652]
[1770484120927,5.77e-06,2038.6,2037.8,0.00941652]
[1770484121629,0.5876208,2039.0,2038.0,0.00685677]
[1770484122029,0.5876208,2039.0,2038.1,15.00263012]
[1770484122229,6.34829851,2039.3,2037.9,0.00685677]
[1770484122437,0.5876208,2039.3,2037.9,0.00685677]
[1770484122630,0.5876208,2039.3,2038.1,0.00685677]
[1770484122842,0.59328854,2039.3,2038.1,0.00685677]
[1770484123439,0.59328854,2039.3,2038.2,14.99577335]
[1770484123741,0.59328854,2039.3,2038.0,14.99577335]
[1770484124143,0.59255228,2039.1,2038.0,14.99577335]
[1770484124347,0.00566774,2039.3,2038.1,0.5144438]
[1770484124539,0.56843531,2039.3,2038.3,0.5144438]
[1770484124736,0.56843531,2039.3,2038.2,0.7599638]
[1770484124937,0.56843531,2039.3,2038.3,0.5144438]
[1770484125135,4.32694774,2039.2,2038.3,15.51021715]
[1770484125334,0.56842757,2039.1,2038.3,15.51021715]
[1770484125542,7.74e-06,2039.3,2038.4,0.52435466]
[1770484125744,7.74e-06,2039.3,2038.5,21.119]
[1770484126541,7.74e-06,2039.3,2038.6,14.99577335]
[1770484127142,7.74e-06,2039.3,2038.7,0.52500769]
[1770484127443,7.74e-06,2039.3,2038.6,14.99577335]
[1770484128342,0.56842757,2039.1,2038.2,0.24552]
[1770484128539,0.56842757,2039.1,2038.3,14.99577335]
[1770484128735,0.56842757,2039.1,2038.1,1.06856884]
[1770484128945,0.56842757,2038.9,2038.2,14.99577335]
[1770484129342,0.56843531,2039.3,2038.2,14.99577335]
[1770484129543,0.56842757,2039.1,2038.2,14.99577335]
[1770484129744,0.56842757,2038.9,2038.2,14.99577335]
[1770484131239,7.74e-06,2039.3,2038.3,0.53070221]
[1770484131435,4.87905707,2039.2,2038.3,0.53070221]
[1770484131640,0.56842757,2039.1,2038.5,0.53070221]
[1770484132641,7.74e-06,2039.3,2038.7,0.53070221]
[1770484132842,0.56842757,2039.9,2038.7,0.53070221]
[1770484133044,0.56842757,2039.9,2038.8,15.52647556]
[1770484133242,0.56842757,2039.9,2038.8,0.53070221]
[1770484133442,0.56842757,2039.9,2038.9,14.99577335]
[1770484133838,0.56842757,2039.7,2038.0,0.7850626]
[1770484134049,0.56842757,2039.5,2038.2,0.52599494]
[1770484134446,0.56842757,2039.5,2038.4,0.52599494]
[1770484135150,0.56842757,2039.5,2038.6,0.53341665]
[1770484135547,0.56842757,2039.5,2038.8,0.53341665]
[1770484135844,0.56842757,2039.8,2038.8,0.53341665]
[1770484136050,0.56842757,2039.8,2038.9,14.99577335]
[1770484136251,0.56842757,2039.6,2038.9,14.99577335]
[1770484136444,0.56842757,2039.6,2038.2,0.53341665]
[1770484136645,0.56842757,2039.6,2038.4,0.53341665]
[1770484136853,0.57334056,2039.9,2038.4,0.53341665]
[1770484137043,0.57334056,2039.9,2038.6,0.53341665]
[1770484138144,0.57334056,2039.9,2038.8,0.53386631]
[1770484139345,0.57334056,2039.9,2038.9,15.50969223]
[1770484139546,0.57334056,2039.9,2038.9,0.51391888]
[1770484139839,0.57334056,2039.9,2039.0,14.99577335]
[1770484140044,0.57334056,2039.9,2038.1,0.51391888]
[1770484140045,0.57334056,2039.9,2038.6,0.51391888]
[1770484140646,0.57334056,2039.9,2038.8,0.51391888]
[1770484141245,0.56842757,2039.8,2039.0,0.51766511]
[1770484141443,0.57334056,2039.9,2039.0,0.51766511]
[1770484141651,0.57334056,2039.9,2039.1,14.99577335]
[1770484141853,0.57334056,2039.9,2038.8,0.51766511]
[1770484142249,0.57334056,2039.9,2038.9,14.40472417]
[1770484142445,0.57334056,2039.9,2038.6,0.5886948]
[1770484142648,0.57334056,2039.9,2038.8,0.5886948]
[1770484143353,0.56842757,2039.7,2038.8,0.5886948]
[1770484143651,0.06910294,2039.3,2038.3,0.5886948]
[1770484143848,0.06910294,2039.1,2038.4,13.20885952]
[1770484144150,0.06910294,2039.1,2037.9,0.00506452]
[1770484144151,0.06910294,2038.8,2037.9,0.59375932]
[1770484144349,0.06910294,2038.8,2038.0,13.79755432]
[1770484144750,0.06910294,2038.6,2037.9,0.00506452]
[1770484144949,4.38072815,2038.5,2037.9,0.59375932]
[1770484145145,0.06910294,2038.3,2037.4,0.5886948]
[1770484145346,0.06910294,2038.3,2037.0,0.5886948]
[1770484145347,0.07071866,2038.1,2037.0,0.5886948]
[1770484145548,0.07249556,2037.9,2036.8,0.53968582]
[1770484145747,0.07249556,2037.9,2036.6,13.20885952]
[1770484145748,0.07249556,2037.7,2036.6,13.20885952]
[1770484146054,0.07249556,2037.7,2036.6,13.76944756]
[1770484146055,0.07249556,2037.5,2036.6,13.76944756]
[1770484146249,4.38627507,2037.4,2036.6,13.76944756]
[1770484146445,0.07240235,2037.4,2036.6,13.76944756]
[1770484146646,0.07819929,2037.7,2036.7,0.55573646]
[1770484146950,4.30791362,2037.6,2036.7,0.55573646]
[1770484147148,0.07819929,2037.7,2036.9,0.55573646]
[1770484147546,0.07819929,2037.7,2037.0,13.76435257]
[1770484147747,0.07290803,2037.5,2036.7,13.76435257]
[1770484147947,0.07290803,2037.5,2036.8,0.55549305]
[1770484148452,0.07290803,2037.5,2036.9,13.20885952]
[1770484148652,0.07290803,2037.5,2036.7,13.20885952]
[1770484148850,4.29706693,2037.4,2036.6,0.00489819]
[1770484149154,0.00875611,2037.3,2036.6,13.05310044]
[1770484149346,4.29648547,2037.2,2036.7,0.58755957]
[1770484149544,7.20664408,2037.7,2036.7,0.58755957]
[1770484149545,0.00579694,2037.7,2036.7,0.58755957]
[1770484149744,0.00875611,2038.3,2036.9,0.58755957]
[1770484149947,0.00875611,2038.3,2036.8,13.04820225]
[1770484150149,0.00875611,2037.9,2036.8,13.04820225]
[1770484150353,0.00875611,2037.9,2036.7,0.58755957]
[1770484150652,0.00875611,2037.9,2036.8,0.58755957]
[1770484150853,0.00587191,2037.9,2036.8,0.58755957]
[1770484151053,0.00587191,2037.9,2037.0,0.58755957]
[1770484151454,0.03158714,2037.9,2037.1,13.04820225]
[1770484152549,0.03158714,2037.9,2037.1,13.63350367]
[1770484152751,0.03158714,2037.9,2036.6,0.00489819]
[1770484152752,42.78174609,2039.0,2037.2,0.58530142]
[1770484152955,1.44344907,2039.6,2037.4,0.58530142]
[1770484152956,0.02571523,2039.6,2037.4,0.58530142]
[1770484153152,0.02318368,2039.5,2037.6,0.58530142]
[1770484153457,42.80492977,2039.6,2037.6,0.58530142]
[1770484153645,0.02318368,2039.5,2037.8,0.58530142]
[1770484153851,0.00515891,2039.5,2038.0,0.58530142]
[1770484154159,0.00515891,2039.5,2038.3,1.44344907]
[1770484154454,0.02318368,2040.0,2038.4,0.58530142]
[1770484154654,0.02318368,2040.3,2038.5,0.58530142]
[1770484155055,8.56976916,2040.9,2038.7,2.02875049]
[1770484155056,0.02318368,2040.6,2038.7,2.02875049]
[1770484155253,0.0294498,2040.6,2038.8,0.58530142]
[1770484155451,0.0294498,2040.6,2038.9,0.58530142]
[1770484155852,0.0294498,2040.6,2039.1,0.58530142]
[1770484156054,0.00626612,2040.6,2039.1,0.58530142]
[1770484156648,0.00626612,2040.6,2039.3,0.58530142]
[1770484157257,0.02262514,2040.5,2039.5,0.58530142]
[1770484157458,0.00626612,2040.6,2039.5,0.58530142]
[1770484157656,0.00626612,2040.6,2039.7,0.58530142]
[1770484158059,0.00626612,2040.6,2039.9,0.58530142]
[1770484158255,0.02262514,2041.9,2039.9,0.58530142]
[1770484158456,42.74609019,2042.0,2040.1,0.58530142]
[1770484158659,0.02262514,2042.1,2040.1,0.58530142]
[1770484158858,0.02262514,2042.1,2040.3,0.58530142]
[1770484159363,0.02168886,2042.0,2040.5,0.58530142]
[1770484159666,0.00566944,2042.1,2040.5,1.13158503]
[1770484159960,0.0273583,2042.4,2040.7,0.58530142]
[1770484160352,0.0273583,2042.4,2040.8,13.63350367]
[1770484160550,0.0273583,2042.4,2040.8,0.58530142]
[1770484160752,0.03289282,2042.4,2041.0,0.58530142]
[1770484160956,0.0273583,2042.3,2041.0,13.04820225]
[1770484161258,0.0273583,2042.3,2041.0,13.63350367]
[1770484161460,0.0273583,2042.3,2041.1,0.58530142]
[1770484161758,0.02060817,2042.1,2040.4,6.344]
[1770484161955,0.00553452,2042.4,2040.6,0.58530142]
[1770484162356,0.00553452,2042.4,2040.8,0.58530142]
[1770484162563,0.02614269,2042.4,2040.8,0.58530142]
[1770484162758,0.02614269,2042.4,2041.0,0.58530142]
[1770484162959,0.02060817,2042.3,2041.0,0.58530142]
[1770484163159,0.02060817,2042.3,2040.4,6.344]
[1770484163160,0.02060817,2042.3,2041.2,0.58530142]
[1770484163560,0.02060817,2042.3,2041.4,0.58530142]
[1770484163764,0.00553452,2042.4,2041.4,0.58530142]
[1770484163967,0.00553452,2042.4,2041.6,0.58530142]
[1770484164368,0.00553452,2042.4,2041.8,0.58530142]
[1770484164567,0.00553452,2042.4,2041.8,0.22672818]
[1770484164767,0.00553452,2042.4,2041.8,12.90971953]
[1770484164963,0.53819549,2042.4,2041.8,12.72716111]
[1770484165170,0.53819549,2042.4,2040.5,0.58530142]
[1770484165374,0.53819549,2042.4,2040.6,0.58530142]
[1770484165968,0.53819549,2042.4,2040.8,0.58530142]
[1770484166374,0.53819549,2042.4,2041.0,0.58530142]
[1770484167076,0.53819549,2042.4,2041.2,0.58530142]
[1770484167276,0.00553452,2042.4,2041.2,0.58530142]
[1770484167573,0.53819549,2042.4,2041.4,0.58530142]
[1770484167965,0.53819549,2042.4,2041.6,0.58530142]
[1770484168371,0.53819549,2042.4,2041.7,13.12977266]
[1770484168566,0.00553452,2042.4,2041.7,0.58530142]
[1770484168772,0.53266097,2042.7,2041.9,0.58530142]
[1770484169276,0.53266097,2042.7,2042.0,11.95315931]
[1770484169476,0.53266097,2042.7,2041.1,0.58530142]
[1770484169679,0.19327875,2042.6,2041.2,11.95315931]
[1770484170269,4.91018561,2042.7,2041.3,0.58530142]
[1770484170472,0.19327875,2043.6,2041.3,0.58530142]
[1770484170671,0.19327875,2043.6,2041.5,0.58530142]
[1770484171173,0.19327875,2043.6,2041.2,0.24516]
[1770484171174,0.19327875,2043.6,2041.7,0.58530142]
[1770484171681,0.00476193,2043.6,2041.9,0.58530142]
[1770484172175,0.00476193,2043.6,2042.1,0.58530142]
[1770484172482,0.00476193,2043.6,2042.1,0.59147333]
[1770484172681,0.00476193,2043.6,2042.3,0.58530142]
[1770484173175,0.00476193,2043.6,2042.5,0.58530142]
[1770484173574,0.00476193,2043.6,2042.7,0.58530142]
[1770484174184,0.00476193,2043.6,2042.9,0.58530142]
[1770484174385,7.32311842,2044.2,2042.9,0.58530142]
[1770484174683,0.19328239,2044.1,2043.1,0.58530142]
[1770484174882,7.51640081,2044.2,2043.1,0.58530142]
[1770484175083,0.19328239,2044.1,2043.2,12.53846073]
[1770484175283,0.1969299,2044.1,2043.2,0.58530142]
[1770484175488,0.00364751,2044.1,2043.4,0.54814658]
[1770484175881,0.19220902,2044.5,2043.6,0.54814658]
[1770484176079,0.19232703,2044.8,2043.6,0.54814658]
[1770484176279,0.19232703,2045.1,2043.8,0.54814658]
[1770484176683,0.19232703,2045.1,2044.0,0.54814658]
[1770484177084,0.19748489,2045.1,2044.1,11.95315931]
[1770484177279,0.19159071,2045.0,2043.7,0.54814658]
[1770484177484,0.19159071,2044.6,2042.8,11.95315931]
[1770484177778,0.19159071,2044.6,2042.9,0.54814658]
[1770484178376,0.19159071,2044.6,2042.9,0.55450201]
[1770484178578,0.19159071,2044.6,2043.1,0.54814658]
[1770484178980,0.19159071,2044.6,2043.3,0.54814658]
[1770484179191,0.24000293,2044.3,2043.0,12.50130589]
[1770484179381,0.24000293,2044.3,2043.1,0.54814658]
[1770484179577,0.24000293,2044.3,2043.3,0.54814658]
[1770484179978,1.43829263,2044.8,2043.5,0.54814658]
[1770484180181,0.00515786,2045.1,2043.5,0.54814658]
[1770484180389,0.57979674,2044.7,2043.6,11.95315931]
[1770484180691,0.57979674,2044.7,2043.2,0.54814658]
[1770484181087,0.57979674,2044.7,2043.3,12.50130589]
[1770484181387,0.57979674,2044.7,2043.1,0.54814658]
[1770484181788,0.57979674,2044.7,2043.2,12.50130589]
[1770484181989,0.57979674,2044.7,2043.2,0.54814658]
[1770484182188,0.57979674,2044.7,2043.3,11.95315931]
[1770484182389,0.57979674,2044.5,2043.4,0.54814658]
[1770484182590,0.57979674,2044.5,2043.3,12.50130589]
[1770484183087,0.57979674,2044.3,2043.4,0.54814658]
[1770484183288,0.57979674,2044.3,2043.5,11.95315931]
[1770484183489,2.82653088,2044.9,2043.1,0.54814658]
[1770484183490,0.57979674,2044.1,2043.1,0.54814658]
[1770484183688,0.57979674,2044.0,2043.1,0.54814658]
[1770484183991,0.57979674,2044.0,2043.2,10.49717492]
[1770484184192,0.57979674,2044.0,2043.2,0.54814658]
[1770484184388,0.57979674,2043.9,2043.3,9.94902834]
[1770484184584,0.57979674,2043.9,2043.1,9.94902834]
[1770484185187,0.57979674,2043.8,2043.1,9.94902834]
[1770484185383,0.57979674,2043.8,2043.1,10.49717492]
[1770484185590,2.84362795,2044.5,2043.2,0.54814658]
[1770484185795,0.57979674,2044.7,2043.3,0.54814658]
[1770484185994,4.10369383,2044.6,2043.3,0.54814658]
[1770484186187,0.57979674,2044.6,2043.5,0.54814658]
[1770484186383,4.68755023,2044.5,2043.5,0.54814658]
[1770484186683,0.57979674,2044.4,2043.6,9.94902834]
[1770484187086,0.57979674,2044.4,2043.6,10.49717492]
[1770484187488,0.57979674,2044.2,2043.6,10.49717492]
[1770484188494,0.57979674,2044.2,2043.6,9.94902834]
[1770484188694,0.57979674,2044.2,2042.9,0.55450201]
[1770484188896,7.16993125,2044.2,2043.1,0.54814658]
[1770484189196,3.05569653,2044.4,2043.1,0.54814658]
[1770484189388,3.05569653,2044.4,2042.9,0.00635543]
[1770484189389,4.11429039,2044.3,2043.3,0.54814658]
[1770484189590,4.11429039,2044.2,2043.3,0.54814658]
[1770484189798,0.21240254,2044.3,2043.5,0.54814658]
[1770484189986,4.11916356,2044.2,2043.5,0.54814658]
[1770484190190,0.21240254,2044.3,2043.6,9.35080977]
[1770484190493,0.21240254,2044.2,2043.6,9.35080977]
[1770484190692,0.21240254,2044.0,2043.6,9.35080977]
[1770484190891,0.21240254,2044.3,2043.6,9.35080977]
[1770484191092,0.21240254,2044.3,2043.6,9.89895635]
[1770484191292,4.12070044,2044.2,2043.7,0.54814658]
[1770484191490,4.33137646,2044.1,2043.6,9.35080977]
[1770484191691,3.05544329,2044.3,2043.6,9.89895635]
[1770484191994,0.21181534,2044.1,2043.6,9.35080977]
[1770484192199,4.33257321,2044.0,2043.6,9.35080977]
[1770484192388,0.21181534,2044.0,2043.6,9.35080977]
[1770484192897,3.05544329,2044.2,2043.6,9.35080977]
[1770484193101,4.33345039,2044.1,2043.6,9.35080977]
[1770484193302,0.21181534,2044.1,2043.6,9.35080977]
[1770484193495,0.21913706,2043.9,2043.6,9.35080977]
[1770484193692,2.84362795,2044.2,2043.6,9.35080977]
[1770484193894,4.12533205,2044.1,2043.6,9.94079719]
[1770484194105,2.84362795,2044.3,2043.6,9.94079719]
[1770484194397,2.84362795,2044.2,2043.6,9.35080977]
[1770484194591,2.84362795,2044.4,2043.6,9.94079719]
[1770484194788,2.84362795,2044.3,2043.6,9.94079719]
[1770484195188,2.84362795,2044.2,2043.6,9.94079719]
[1770484195502,4.13227133,2044.1,2042.9,0.00635543]
[1770484195791,4.13227133,2044.1,2042.3,0.58998742]
[1770484195792,2.84362795,2043.2,2042.3,0.58998742]
[1770484196299,6.97589928,2043.2,2042.3,0.58998742]
[1770484196502,4.13227133,2043.1,2042.3,0.58998742]
[1770484196693,2.84362795,2043.4,2042.3,0.58998742]
[1770484196904,4.13251608,2043.3,2042.3,0.59587911]
[1770484197196,4.13210551,2043.2,2042.3,0.59587911]
[1770484197398,2.84846789,2043.4,2042.3,0.59587911]
[1770484197399,4.134071,2043.1,2042.3,0.59587911]
[1770484197598,2.84362795,2043.3,2042.3,0.59587911]
[1770484197798,2.84362795,2043.1,2042.3,0.59587911]
[1770484197993,2.84362795,2043.0,2042.3,0.59587911]
[1770484198201,45.77664867,2043.0,2042.3,0.59587911]
[1770484198399,4.13232442,2042.9,2042.3,0.59587911]
[1770484198596,2.84362795,2043.0,2042.3,0.59587911]
[1770484199398,6.97830018,2043.0,2042.3,0.59587911]
[1770484199701,2.84362795,2042.9,2042.3,0.59587911]